bitfinex/quotes_SOLUSD_20230904
["timestamp","ask_amount","ask_price","bid_price","bid_amount"]
[1693839388787,2.24907991,19.484,19.48,20.327]
[1693839390107,8.006,19.485,19.48,20.327]
[1693839390492,8.006,19.485,19.48,4.804]
[1693839390696,2.16736443,19.484,19.48,4.804]
[1693839391807,10.17336443,19.484,19.48,4.804]
[1693839392102,8.006,19.484,19.48,4.804]
[1693839392903,8.006,19.485,19.48,4.804]
[1693839393205,56.446,19.488,19.48,20.327]
[1693839393206,2.49999999,19.488,19.48,20.327]
[1693839393401,8.005,19.486,19.48,20.327]
[1693839393592,2.49999999,19.485,19.48,20.327]
[1693839393793,10.50599999,19.485,19.48,4.804]
[1693839394104,8.006,19.485,19.48,4.804]
[1693839395825,8.005,19.486,19.48,20.327]
[1693839396799,2.02213614,19.485,19.48,20.327]
[1693839396999,10.02813614,19.485,19.48,4.804]
[1693839397200,8.006,19.485,19.48,4.804]
[1693839397708,33.872,19.485,19.48,4.804]
[1693839398009,8.006,19.485,19.48,4.804]
[1693839398198,33.872,19.485,19.478,70.524]
[1693839398513,8.006,19.485,19.48,4.804]
[1693839400911,8.006,19.485,19.479,4.805]
[1693839401106,33.872,19.485,19.48,4.804]
[1693839401504,8.006,19.485,19.48,4.804]
[1693839402908,2.31872895,19.484,19.476,20.331]
[1693839403414,8.007,19.482,19.476,20.331]
[1693839405414,8.007,19.483,19.477,55.0]
[1693839405607,8.007,19.483,19.478,4.805]
[1693839406704,33.875,19.483,19.475,4.806]
[1693839407094,33.875,19.483,19.474,20.55445995]
[1693839407503,33.875,19.483,19.474,15.74845995]
[1693839407820,136.015,19.483,19.471,4.807]
[1693839408514,136.015,19.483,19.471,20.337]
[1693839409413,136.015,19.483,19.474,4.806]
[1693839409915,33.875,19.483,19.474,4.806]
[1693839411605,8.007,19.483,19.475,55.0]
[1693839411810,8.007,19.483,19.477,4.805]
[1693839412009,8.006,19.485,19.477,20.331]
[1693839412312,149.4378,19.488,19.478,55.0]
[1693839412313,2.49999999,19.484,19.478,55.0]
[1693839412611,2.49999999,19.485,19.479,4.804]
[1693839413021,8.006,19.484,19.478,4.805]
[1693839413200,2.49999999,19.483,19.477,4.805]
[1693839413509,8.007,19.482,19.477,4.805]
[1693839413710,8.007,19.482,19.476,4.805]
[1693839416003,8.007,19.483,19.476,20.331]
[1693839416497,2.49999999,19.484,19.476,20.331]
[1693839416801,10.50599999,19.484,19.476,20.331]
[1693839417111,33.873,19.484,19.476,20.331]
[1693839417423,2.49999999,19.483,19.476,20.331]
[1693839417720,8.007,19.482,19.476,20.331]
[1693839418025,8.007,19.483,19.476,20.331]
[1693839421729,2.29198295,19.485,19.479,20.329]
[1693839421913,10.29798295,19.485,19.479,20.329]
[1693839422118,8.006,19.485,19.479,20.329]
[1693839422306,25.863,19.487,19.479,20.329]
[1693839422516,8.006,19.485,19.479,20.329]
[1693839422706,8.006,19.485,19.479,4.805]
[1693839427113,8.006,19.485,19.479,20.329]
[1693839427414,8.006,19.485,19.48,55.0]
[1693839427718,8.006,19.485,19.48,59.804]
[1693839428725,33.872,19.485,19.478,4.805]
[1693839429121,2.29291591,19.484,19.478,4.805]
[1693839429426,8.007,19.483,19.478,4.805]
[1693839430426,8.006,19.484,19.478,4.805]
[1693839430811,92.9908,19.488,19.478,4.805]
[1693839431013,8.006,19.485,19.478,20.33]
[1693839431915,33.872,19.485,19.478,4.805]
[1693839432116,2.13206233,19.484,19.478,20.33]
[1693839432339,8.006,19.485,19.478,20.33]
[1693839435824,8.005,19.486,19.481,4.804]
[1693839436022,8.005,19.486,19.48,4.804]
[1693839436329,2.49999999,19.485,19.48,4.804]
[1693839436629,8.006,19.485,19.48,4.804]
[1693839441035,8.006,19.485,19.479,59.805]
[1693839443736,1.98432683,19.484,19.479,59.805]
[1693839443937,8.006,19.484,19.479,59.805]
[1693839444744,8.006,19.484,19.479,55.0]
[1693839444943,8.006,19.484,19.478,4.805]
[1693839445641,33.873,19.484,19.477,4.805]
[1693839445945,33.873,19.484,19.478,55.0]
[1693839447755,8.006,19.484,19.478,59.805]
[1693839450939,56.446,19.488,19.478,59.805]
[1693839451140,28.36399999,19.487,19.478,59.805]
[1693839451944,8.005,19.486,19.478,75.33]
[1693839452531,8.005,19.486,19.478,59.805]
[1693839453039,33.8,19.5,19.478,59.805]
[1693839453040,102.072,19.496,19.48,33.8]
[1693839453243,2.49999999,19.495,19.486,20.321]
[1693839453447,2.89642731,19.499,19.49,33.8]
[1693839453737,8.0,19.499,19.492,4.801]
[1693839454340,25.843,19.503,19.492,4.801]
[1693839454549,8.0,19.5,19.492,4.801]
[1693839455127,4.44461036,19.499,19.491,4.802]
[1693839455328,4.44461036,19.499,19.488,33.866]
[1693839455329,4.44461036,19.499,19.492,4.801]
[1693839455528,12.44461036,19.499,19.492,4.801]
[1693839455738,38.29161036,19.499,19.484,61.279]
[1693839456043,38.29161036,19.499,19.489,4.802]
[1693839456243,33.847,19.499,19.49,55.0]
[1693839456446,2.3149205,19.498,19.49,55.0]
[1693839456647,8.001,19.496,19.49,55.0]
[1693839457139,8.001,19.498,19.49,59.802]
[1693839457544,8.001,19.498,19.49,75.317]
[1693839458641,8.001,19.498,19.49,59.802]
[1693839459749,8.0,19.499,19.49,75.317]
[1693839459945,91.499,19.506,19.49,75.317]
[1693839459946,2.46201773,19.498,19.49,75.317]
[1693839460241,4.44461036,19.503,19.49,75.317]
[1693839460452,4.44461036,19.501,19.49,75.317]
[1693839461335,7.999,19.501,19.49,75.317]
[1693839461546,4.44461036,19.5,19.49,75.317]
[1693839461748,12.44461036,19.5,19.49,75.317]
[1693839462252,4.44461036,19.5,19.49,75.317]
[1693839463147,4.44461036,19.501,19.49,75.317]
[1693839463363,12.44361036,19.501,19.49,75.317]
[1693839464343,38.28761036,19.501,19.49,75.317]
[1693839465653,12.44361036,19.501,19.49,75.317]
[1693839466253,33.8,19.5,19.482,15.521]
[1693839466449,90.28,19.495,19.484,4.803]
[1693839466646,4.44461036,19.494,19.484,4.803]
[1693839467043,8.003,19.491,19.484,4.803]
[1693839467348,4.44461036,19.494,19.484,20.323]
[1693839467537,12.44661036,19.494,19.484,20.323]
[1693839467857,38.30061036,19.494,19.484,20.323]
[1693839468233,12.44661036,19.494,19.487,4.803]
[1693839468660,8.002,19.494,19.487,4.803]
[1693839468842,4.44461036,19.493,19.487,4.803]
[1693839469951,12.44661036,19.493,19.487,4.803]
[1693839470170,8.002,19.493,19.487,4.803]
[1693839471449,8.002,19.493,19.48,150.86484613]
[1693839471450,33.857,19.493,19.486,4.803]
[1693839471660,2.49999999,19.492,19.486,4.803]
[1693839471850,8.003,19.491,19.486,4.803]
[1693839472054,8.003,19.491,19.484,4.803]
[1693839472257,2.49999999,19.49,19.484,4.803]
[1693839472462,10.50399999,19.49,19.484,4.803]
[1693839472757,8.004,19.49,19.484,4.803]
[1693839474156,8.003,19.491,19.484,20.323]
[1693839475247,2.09386027,19.49,19.484,20.323]
[1693839475751,8.003,19.491,19.484,20.323]
[1693839476146,2.10495382,19.49,19.484,20.323]
[1693839476650,2.10495382,19.49,19.484,4.803]
[1693839476851,8.004,19.49,19.484,4.803]
[1693839477151,8.003,19.491,19.484,4.803]
[1693839477355,8.003,19.491,19.484,20.323]
[1693839478556,33.861,19.491,19.484,4.803]
[1693839479149,8.003,19.491,19.484,4.803]
[1693839479351,8.003,19.491,19.484,20.323]
[1693839481752,8.003,19.492,19.484,20.323]
[1693839481954,8.003,19.492,19.485,55.0]
[1693839482263,8.003,19.492,19.487,4.803]
[1693839482953,8.002,19.493,19.487,4.803]
[1693839486664,8.002,19.493,19.486,4.803]
[1693839487255,8.002,19.493,19.486,20.321]
[1693839487761,8.002,19.493,19.486,4.803]
[1693839491165,8.002,19.493,19.486,20.321]
[1693839493075,8.002,19.493,19.48,95.091]
[1693839493076,33.857,19.493,19.48,95.091]
[1693839493275,33.857,19.493,19.481,55.5]
[1693839493471,3.00115853,19.492,19.481,0.5]
[1693839493773,90.307,19.489,19.481,0.5]
[1693839494065,1.98762847,19.488,19.481,4.804]
[1693839494257,8.005,19.487,19.481,4.804]
[1693839494460,33.868,19.487,19.48,38.604]
[1693839495167,33.868,19.487,19.481,0.5]
[1693839495365,33.868,19.487,19.478,0.5]
[1693839495573,33.868,19.487,19.481,4.804]
[1693839496174,8.005,19.487,19.481,4.804]
[1693839496678,8.005,19.488,19.481,4.804]
[1693839496879,8.005,19.488,19.481,20.326]
[1693839498078,8.004,19.49,19.481,54.205]
[1693839498283,8.004,19.489,19.481,54.205]
[1693839498476,97.5374,19.499,19.482,55.0]
[1693839498662,8.003,19.492,19.482,55.0]
[1693839498857,33.859,19.492,19.482,0.5]
[1693839499074,33.859,19.492,19.484,4.803]
[1693839499262,2.49999999,19.491,19.485,55.0]
[1693839499458,8.004,19.49,19.485,55.0]
[1693839499859,8.004,19.49,19.484,4.803]
[1693839502287,8.003,19.492,19.484,20.323]
[1693839502489,2.0619359,19.491,19.484,20.323]
[1693839502786,25.854,19.494,19.484,20.323]
[1693839502787,10.50299999,19.492,19.484,20.323]
[1693839503374,2.49999999,19.492,19.484,20.323]
[1693839503578,2.49999999,19.493,19.484,20.323]
[1693839503783,8.003,19.492,19.484,20.323]
[1693839503986,2.49999999,19.491,19.484,20.323]
[1693839504181,10.50299999,19.491,19.484,20.323]
[1693839504391,10.50299999,19.491,19.484,4.803]
[1693839504693,8.003,19.491,19.484,4.803]
[1693839505793,8.003,19.491,19.484,20.323]
[1693839506496,33.861,19.491,19.483,4.803]
[1693839506683,8.003,19.491,19.484,59.803]
[1693839506883,97.5374,19.499,19.484,75.323]
[1693839507084,33.854,19.495,19.484,75.323]
[1693839507391,4.44461036,19.494,19.484,75.323]
[1693839507596,8.003,19.492,19.484,75.323]
[1693839507894,12.44761036,19.491,19.484,75.323]
[1693839508288,8.003,19.491,19.484,75.323]
[1693839508594,8.003,19.491,19.484,59.803]
[1693839508802,4.44461036,19.49,19.484,59.803]
[1693839508983,8.004,19.489,19.484,59.803]
[1693839512296,8.004,19.489,19.484,4.803]
[1693839513182,8.004,19.489,19.483,4.804]
[1693839517997,8.004,19.49,19.483,4.804]
[1693839519705,2.26976865,19.491,19.483,54.2]
[1693839520790,2.49999999,19.492,19.483,54.2]
[1693839521103,10.50299999,19.492,19.483,54.2]
[1693839521300,8.003,19.492,19.483,54.2]
[1693839521799,2.23796799,19.491,19.483,54.2]
[1693839522792,8.003,19.492,19.483,54.2]
[1693839523194,2.03720465,19.491,19.483,54.2]
[1693839523506,2.49999999,19.492,19.483,54.2]
[1693839524705,10.50299999,19.492,19.483,54.2]
[1693839524905,8.003,19.492,19.483,54.2]
[1693839529793,2.03162782,19.491,19.483,54.2]
[1693839530502,2.49999999,19.492,19.483,54.2]
[1693839530695,25.854,19.494,19.483,54.2]
[1693839530696,2.49999999,19.493,19.483,54.2]
[1693839531608,8.003,19.492,19.483,54.2]
[1693839531808,2.49999999,19.491,19.483,54.2]
[1693839532307,10.50299999,19.491,19.483,54.2]
[1693839532502,8.003,19.491,19.483,54.2]
[1693839533808,8.003,19.492,19.483,54.2]
[1693839535697,8.002,19.494,19.483,54.2]
[1693839535992,8.002,19.494,19.482,61.286]
[1693839535993,2.49999999,19.493,19.487,4.803]
[1693839536193,2.49999999,19.493,19.487,20.321]
[1693839536510,2.49999999,19.495,19.487,20.321]
[1693839536698,12.44561036,19.498,19.487,20.321]
[1693839537406,38.29361036,19.498,19.487,20.321]
[1693839540809,4.44461036,19.498,19.487,20.321]
[1693839541016,12.44461036,19.498,19.488,55.0]
[1693839541218,12.44461036,19.498,19.491,20.316]
[1693839542007,38.29261036,19.498,19.491,4.802]
[1693839544414,4.44461036,19.498,19.491,20.316]
[1693839544616,4.44461036,19.499,19.491,20.316]
[1693839545614,56.402,19.503,19.491,20.316]
[1693839545615,4.44461036,19.502,19.491,20.316]
[1693839546723,8.0,19.5,19.491,20.316]
[1693839546924,4.44461036,19.499,19.491,20.316]
[1693839547110,4.44461036,19.499,19.492,55.0]
[1693839547323,4.44461036,19.5,19.494,20.313]
[1693839548208,7.999,19.501,19.494,20.313]
[1693839548412,4.44461036,19.5,19.494,20.313]
[1693839548723,8.0,19.5,19.494,4.801]
[1693839549022,4.44461036,19.499,19.494,4.801]
[1693839549222,12.44461036,19.499,19.494,4.801]
[1693839549517,8.0,19.499,19.494,4.801]
[1693839549721,4.44461036,19.498,19.494,4.801]
[1693839550223,8.0,19.499,19.494,4.801]
[1693839551108,7.5,19.499,19.494,4.801]
[1693839552817,8.0,19.5,19.494,4.801]
[1693839553012,7.999,19.501,19.494,20.313]
[1693839553220,2.56128915,19.5,19.494,20.313]
[1693839553525,3.10419716,19.5,19.494,20.313]
[1693839557618,11.10319716,19.502,19.494,20.313]
[1693839557929,36.94619716,19.502,19.494,4.801]
[1693839558922,36.94619716,19.502,19.494,20.313]
[1693839559129,11.10319716,19.502,19.494,20.313]
[1693839562316,3.10419716,19.502,19.494,20.313]
[1693839562517,3.70442975,19.503,19.495,55.0]
[1693839562727,7.999,19.502,19.497,4.8]
[1693839562923,3.70442975,19.501,19.497,4.8]
[1693839563335,11.70342975,19.501,19.495,70.511]
[1693839563626,7.999,19.501,19.496,4.8]
[1693839564833,7.999,19.502,19.496,4.8]
[1693839565038,2.43548135,19.501,19.496,4.8]
[1693839565234,10.43448135,19.501,19.496,4.8]
[1693839565437,7.999,19.501,19.496,4.8]
[1693839567125,7.999,19.502,19.496,20.31]
[1693839567326,2.34375794,19.501,19.496,20.31]
[1693839570639,10.34275794,19.501,19.496,4.8]
[1693839570939,7.999,19.501,19.496,4.8]
[1693839571140,7.998,19.504,19.496,54.163]
[1693839571325,10.29426087,19.503,19.496,20.31]
[1693839571636,33.841,19.503,19.496,4.8]
[1693839571830,2.78528613,19.502,19.496,4.8]
[1693839572047,7.999,19.501,19.496,4.8]
[1693839573538,33.843,19.501,19.495,55.0]
[1693839573732,33.843,19.501,19.493,15.512]
[1693839573733,33.843,19.501,19.494,55.0]
[1693839574430,33.843,19.501,19.493,4.801]
[1693839574635,2.58925331,19.5,19.491,15.514]
[1693839574834,33.85,19.498,19.493,4.801]
[1693839575139,8.001,19.498,19.493,20.314]
[1693839579830,25.847,19.5,19.493,20.314]
[1693839580033,8.0,19.499,19.493,4.801]
[1693839580237,33.847,19.499,19.493,20.314]
[1693839580542,55.0,19.498,19.48,33.8]
[1693839580844,192.379,19.493,19.48,33.8]
[1693839581145,90.308,19.489,19.48,38.604]
[1693839581533,90.308,19.489,19.48,54.127]
[1693839581730,2.24391982,19.488,19.48,54.127]
[1693839582151,8.005,19.486,19.48,54.127]
[1693839583447,8.005,19.486,19.481,55.0]
[1693839583642,8.005,19.486,19.481,59.804]
[1693839587343,8.005,19.486,19.481,55.0]
[1693839587541,33.869,19.486,19.481,4.804]
[1693839587745,33.869,19.486,19.475,25.57009703]
[1693839588048,33.869,19.486,19.474,4.806]
[1693839588049,2.49999999,19.485,19.474,4.806]
[1693839588351,90.34,19.482,19.474,4.806]
[1693839588536,90.34,19.482,19.475,0.5]
[1693839588744,90.34,19.482,19.475,5.305]
[1693839588937,33.877,19.482,19.475,4.805]
[1693839589149,33.877,19.482,19.476,0.5]
[1693839589447,33.877,19.482,19.476,4.805]
[1693839589640,2.48458849,19.486,19.476,4.805]
[1693839589840,8.007,19.483,19.476,20.331]
[1693839590233,8.006,19.484,19.478,20.33]
[1693839591241,8.006,19.484,19.478,4.805]
[1693839591949,8.006,19.484,19.479,55.0]
[1693839592249,8.006,19.484,19.479,59.805]
[1693839596255,106.4413,19.489,19.479,75.329]
[1693839596548,98.4373,19.489,19.482,20.325]
[1693839596752,8.004,19.49,19.482,20.325]
[1693839600342,8.003,19.492,19.482,20.325]
[1693839600541,2.30573272,19.491,19.483,55.0]
[1693839600748,8.004,19.49,19.48,33.8]
[1693839601051,8.004,19.49,19.481,55.5]
[1693839601246,33.863,19.49,19.481,55.0]
[1693839601455,33.863,19.49,19.482,4.804]
[1693839601964,2.01275902,19.489,19.482,4.804]
[1693839602163,8.005,19.487,19.482,4.804]
[1693839602355,8.005,19.487,19.481,4.804]
[1693839602563,33.868,19.487,19.479,4.804]
[1693839602769,33.868,19.487,19.479,20.0]
[1693839603055,8.005,19.487,19.48,4.804]
[1693839603366,8.005,19.487,19.48,20.327]
[1693839603862,33.868,19.487,19.48,4.804]
[1693839604361,33.868,19.487,19.479,20.0]
[1693839604362,33.868,19.487,19.476,15.526]
[1693839604551,2.49999999,19.486,19.474,0.5]
[1693839604753,90.337,19.483,19.474,0.5]
[1693839605551,90.337,19.483,19.474,4.806]
[1693839605758,33.876,19.483,19.474,20.334]
[1693839606547,33.876,19.483,19.474,4.806]
[1693839611163,33.876,19.483,19.473,4.806]
[1693839611356,33.876,19.483,19.471,4.806]
[1693839611555,33.876,19.483,19.472,0.5]
[1693839611759,33.876,19.483,19.472,5.306]
[1693839611961,33.876,19.483,19.472,4.806]
[1693839612366,33.876,19.483,19.471,4.806]
[1693839613557,33.876,19.483,19.471,20.336]
[1693839614358,8.007,19.483,19.471,54.232]
[1693839614659,33.875,19.483,19.475,4.806]
[1693839617558,33.875,19.483,19.475,20.333]
[1693839620072,33.875,19.483,19.475,4.806]
[1693839621169,99.5423,19.486,19.475,20.333]
[1693839621359,2.12297737,19.485,19.476,55.0]
[1693839621566,2.12297737,19.485,19.478,54.212]
[1693839621766,8.006,19.485,19.479,55.0]
[1693839622069,8.006,19.485,19.48,4.804]
[1693839622269,90.325,19.485,19.478,4.805]
[1693839622465,90.325,19.485,19.476,15.526]
[1693839622670,90.325,19.485,19.477,4.805]
[1693839622961,2.16317428,19.484,19.477,20.331]
[1693839623166,8.006,19.484,19.477,20.331]
[1693839623774,8.006,19.486,19.477,20.331]
[1693839624072,10.46204908,19.485,19.48,4.804]
[1693839624261,8.006,19.485,19.48,4.804]
[1693839624463,33.872,19.485,19.48,4.804]
[1693839625173,8.006,19.485,19.48,4.804]
[1693839625971,33.872,19.485,19.48,4.804]
[1693839626569,33.872,19.485,19.477,4.805]
[1693839627058,33.872,19.485,19.477,20.331]
[1693839628280,8.006,19.485,19.48,4.804]
[1693839629173,8.006,19.485,19.48,20.327]
[1693839630271,8.006,19.485,19.48,4.804]
[1693839630876,33.872,19.485,19.479,4.805]
[1693839637685,8.006,19.485,19.479,20.329]
[1693839638079,8.003,19.493,19.48,55.0]
[1693839638379,8.003,19.493,19.483,54.197]
[1693839638380,2.49999999,19.492,19.483,54.197]
[1693839638684,10.50299999,19.492,19.484,55.0]
[1693839638879,36.35899999,19.492,19.484,55.0]
[1693839639077,36.35899999,19.492,19.482,4.804]
[1693839639378,36.35899999,19.492,19.482,20.326]
[1693839639694,10.50299999,19.492,19.482,20.326]
[1693839639880,2.49999999,19.492,19.482,20.326]
[1693839640268,7.999,19.502,19.482,20.326]
[1693839640269,4.44461036,19.501,19.483,79.63566988]
[1693839640583,7.998,19.504,19.494,54.168]
[1693839640780,4.44461036,19.503,19.494,20.313]
[1693839640982,7.999,19.501,19.494,20.313]
[1693839641164,4.44461036,19.5,19.494,20.313]
[1693839641372,4.44461036,19.5,19.495,55.0]
[1693839641570,4.44461036,19.502,19.496,20.31]
[1693839641773,7.999,19.502,19.496,4.8]
[1693839642278,4.44461036,19.501,19.496,4.8]
[1693839642478,8.0,19.5,19.496,4.8]
[1693839643498,2.64813271,19.499,19.496,4.8]
[1693839643780,10.64813271,19.499,19.496,4.8]
[1693839643992,8.0,19.499,19.496,4.8]
[1693839644385,8.0,19.499,19.495,4.801]
[1693839645383,7.5,19.499,19.495,4.801]
[1693839645991,8.0,19.5,19.495,4.801]
[1693839646180,3.12926837,19.499,19.495,4.801]
[1693839646381,3.12926837,19.499,19.495,20.312]
[1693839647291,3.60336493,19.5,19.495,20.312]
[1693839647676,11.60336493,19.5,19.495,20.312]
[1693839647877,11.60336493,19.5,19.495,4.801]
[1693839648077,8.0,19.5,19.495,20.312]
[1693839648278,3.60336493,19.499,19.494,4.801]
[1693839648479,8.001,19.498,19.494,4.801]
[1693839648673,3.60336493,19.497,19.493,4.801]
[1693839648879,3.60336493,19.497,19.49,49.376]
[1693839648880,8.001,19.496,19.492,4.801]
[1693839650190,8.001,19.496,19.481,33.866]
[1693839650191,33.852,19.496,19.481,33.866]
[1693839650376,33.852,19.496,19.484,4.803]
[1693839650377,3.60336493,19.495,19.484,4.803]
[1693839650576,90.294,19.492,19.482,4.804]
[1693839650792,3.60336493,19.491,19.482,4.804]
[1693839651094,3.60336493,19.488,19.482,20.326]
[1693839651289,8.005,19.487,19.482,4.804]
[1693839651591,33.868,19.487,19.482,4.804]
[1693839651796,33.868,19.487,19.481,4.804]
[1693839651980,3.60336493,19.486,19.481,4.804]
[1693839652187,8.006,19.485,19.481,4.804]
[1693839653780,33.872,19.485,19.48,4.804]
[1693839653982,8.006,19.485,19.48,20.327]
[1693839654802,33.872,19.485,19.479,4.805]
[1693839655094,33.872,19.485,19.473,0.5]
[1693839655095,55.0,19.484,19.473,0.5]
[1693839655400,90.344,19.481,19.473,5.306]
[1693839655586,90.344,19.481,19.473,4.806]
[1693839655786,90.344,19.481,19.474,0.5]
[1693839655994,90.344,19.481,19.474,5.306]
[1693839656199,90.344,19.481,19.474,4.806]
[1693839656496,90.344,19.481,19.471,0.5]
[1693839656797,90.344,19.481,19.473,4.806]
[1693839657001,90.344,19.481,19.474,0.5]
[1693839657694,90.344,19.481,19.473,0.5]
[1693839658293,90.344,19.481,19.473,5.306]
[1693839658592,90.344,19.481,19.473,0.5]
[1693839658800,90.344,19.481,19.471,0.5]
[1693839659093,75.0,19.48,19.466,4.808]
[1693839659303,90.367,19.476,19.466,4.808]
[1693839659596,55.0,19.475,19.462,33.911]
[1693839659795,33.895,19.472,19.466,4.808]
[1693839660390,8.011,19.472,19.466,4.808]
[1693839660595,8.011,19.472,19.466,20.342]
[1693839660797,92.9414,19.475,19.466,20.342]
[1693839660985,25.88,19.474,19.466,20.342]
[1693839661291,8.011,19.473,19.466,20.342]
[1693839661693,33.892,19.473,19.466,19.342]
[1693839662089,0.49999999,19.472,19.466,19.342]
[1693839662295,8.011,19.472,19.466,19.342]
[1693839663892,90.385,19.472,19.464,4.808]
[1693839664599,90.385,19.472,19.465,0.5]
[1693839664799,90.385,19.472,19.464,4.808]
[1693839665800,90.385,19.472,19.463,4.809]
[1693839666001,0.49999999,19.471,19.463,4.809]
[1693839666200,33.899,19.469,19.463,4.809]
[1693839666702,8.012,19.469,19.463,4.809]
[1693839667089,33.899,19.469,19.463,4.809]
[1693839667801,90.399,19.469,19.456,25.57009703]
[1693839668000,90.399,19.469,19.458,0.5]
[1693839669710,90.399,19.469,19.462,0.5]
[1693839669905,90.399,19.469,19.461,4.809]
[1693839670085,90.399,19.469,19.462,4.809]
[1693839670601,90.399,19.469,19.457,20.0]
[1693839670788,90.399,19.469,19.455,0.5]
[1693839670988,90.399,19.469,19.458,20.351]
[1693839671189,90.399,19.469,19.461,4.809]
[1693839672405,90.399,19.469,19.46,4.809]
[1693839672597,90.399,19.469,19.461,0.5]
[1693839673109,90.399,19.469,19.46,0.5]
[1693839673310,90.399,19.469,19.46,4.809]
[1693839673608,250.0,19.468,19.447,61.394]
[1693839673808,192.685,19.462,19.446,4.813]
[1693839673996,55.0,19.461,19.446,4.813]
[1693839674194,33.92,19.457,19.446,4.813]
[1693839674999,33.92,19.457,19.445,4.813]
[1693839675205,33.92,19.457,19.444,4.813]
[1693839675706,33.92,19.457,19.44,49.28169577]
[1693839675908,33.92,19.457,19.441,0.5]
[1693839676110,33.92,19.457,19.444,4.813]
[1693839677410,33.92,19.457,19.445,55.0]
[1693839677612,33.92,19.457,19.445,59.813]
[1693839678901,33.92,19.457,19.446,0.5]
[1693839679106,91.0017,19.46,19.435,4.815]
[1693839679107,55.0,19.456,19.435,4.815]
[1693839679308,90.473,19.453,19.439,4.815]
[1693839679510,33.927,19.453,19.44,0.5]
[1693839679692,8.019,19.453,19.443,4.813]
[1693839680401,8.019,19.453,19.444,0.5]
[1693839680594,8.019,19.453,19.444,4.813]
[1693839681513,158.7807,19.46,19.444,4.813]
[1693839681712,99.0177,19.46,19.445,0.5]
[1693839681920,20.0,19.459,19.449,4.812]
[1693839682098,8.018,19.456,19.44,33.83]
[1693839682300,33.922,19.456,19.444,15.552]
[1693839682610,33.922,19.456,19.444,4.813]
[1693839683607,33.922,19.456,19.444,20.365]
[1693839684100,33.922,19.456,19.444,4.813]
[1693839684414,33.922,19.456,19.445,4.813]